bitfinex-derivatives/quotes_BTCF0:USTF0_20250422
["timestamp","ask_amount","ask_price","bid_price","bid_amount"]
[1745326755400,0.4878576,89079.0,89078.0,0.007]
[1745326755798,8e-05,89079.0,89078.0,0.007]
[1745326756002,0.1123376,89079.0,89078.0,0.007]
[1745326756302,0.1122589,89078.0,89077.0,0.001]
[1745326756606,0.4828589,89078.0,89077.0,0.001]
[1745326757011,0.1122614,89076.0,89075.0,0.1883]
[1745326757308,0.1122627,89075.0,89074.0,0.00505195]
[1745326757505,0.5951267,89075.0,89074.0,0.00505195]
[1745326757902,0.1122753,89065.0,89064.0,0.1761]
[1745326758911,0.4828753,89065.0,89064.0,0.2883765]
[1745326759109,0.4838753,89065.0,89064.0,0.009]
[1745326759504,0.3716,89065.0,89064.0,0.009]
[1745326759806,0.001,89065.0,89064.0,0.1212765]
[1745326760004,0.001,89065.0,89064.0,0.3104765]
[1745326760600,0.002,89065.0,89064.0,0.3174765]
[1745326761209,0.00208,89065.0,89064.0,0.3174765]
[1745326762105,0.00208,89065.0,89064.0,0.2052]
[1745326762317,0.1143553,89065.0,89064.0,0.2052]
[1745326763614,0.11436,89065.0,89057.0,0.1122845]
[1745326763811,0.3608,89058.0,89057.0,0.1122853]
[1745326764112,0.3608,89058.0,89057.0,0.1052853]
[1745326764910,0.4730841,89058.0,89057.0,0.1052853]
[1745326765107,0.4730841,89058.0,89057.0,0.1072853]
[1745326765305,0.3608,89058.0,89057.0,0.1072853]
[1745326765505,8e-05,89065.0,89057.0,0.003]
[1745326765909,0.4730841,89058.0,89057.0,0.003]
[1745326766307,0.4740841,89058.0,89057.0,0.003]
[1745326766610,0.4740841,89058.0,89057.0,0.001]
[1745326766908,0.3618,89058.0,89057.0,0.001]
[1745326767111,0.5537,89058.0,89057.0,0.1132853]
[1745326767411,0.66598801,89058.0,89057.0,0.001]
[1745326767707,0.77827211,89058.0,89057.0,0.001]
[1745326768097,0.66598801,89058.0,89057.0,0.001]
[1745326768301,0.66698801,89058.0,89057.0,0.001]
[1745326768505,0.3628,89058.0,89057.0,0.1132853]
[1745326768703,0.36288,89058.0,89057.0,0.1132853]
[1745326768913,0.002,89058.0,89057.0,0.4740853]
[1745326769206,0.01108,89058.0,89057.0,0.4730853]
[1745326769407,0.02008,89058.0,89057.0,0.4740853]
[1745326769814,0.019,89058.0,89057.0,0.4740853]
[1745326770003,0.017,89058.0,89057.0,0.4740853]
[1745326770306,0.00016834,89073.0,89057.0,0.6118]
[1745326770507,0.00016834,89073.0,89057.0,0.3618]
[1745326770712,8e-05,89058.0,89057.0,0.4740853]
[1745326770911,8e-05,89058.0,89057.0,0.6650853]
[1745326771213,0.00010801,89070.0,89069.0,0.1122702]
[1745326771412,0.00016834,89073.0,89072.0,0.1082664]
[1745326771709,0.00010801,89088.0,89069.0,0.7146]
[1745326771909,0.1792,89086.0,89085.0,0.1122501]
[1745326772114,0.00010801,89088.0,89087.0,0.1122475]
[1745326772315,0.1792,89092.0,89087.0,0.1082475]
[1745326772511,0.1792,89092.0,89085.0,0.3608]
[1745326772714,8e-05,89088.0,89087.0,0.1122475]
[1745326773207,8e-05,89088.0,89087.0,0.1042475]
[1745326774614,8e-05,89088.0,89085.0,0.3578]
[1745326774811,0.00308,89088.0,89086.0,0.1122485]
[1745326775116,0.00308,89088.0,89087.0,0.1122475]
[1745326775308,0.00308,89088.0,89085.0,0.4700493]
[1745326775504,0.1921,89087.0,89086.0,0.1122488]
[1745326775711,0.1921,89087.0,89085.0,0.3578]
[1745326775904,0.1921,89087.0,89086.0,0.1122488]
[1745326776101,0.1921,89087.0,89086.0,0.4730488]
[1745326778117,8e-05,89088.0,89087.0,0.1122475]
[1745326778307,0.2762,89093.0,89092.0,0.1122412]
[1745326778509,0.2762,89093.0,89086.0,0.3638]
[1745326778816,8e-05,89088.0,89087.0,0.2244949]
[1745326779509,0.0854,89093.0,89092.0,0.1052412]
[1745326781306,0.00010801,89094.0,89093.0,0.11224]
[1745326781512,0.00016843,89098.0,89097.0,0.1122349]
[1745326781710,0.00016843,89098.0,89097.0,0.4730349]
[1745326781907,0.00014581,89104.0,89100.0,0.0561153]
[1745326782106,0.00014581,89104.0,89103.0,0.4730274]
[1745326782307,0.1767,89117.0,89104.0,0.1122257]
[1745326782610,0.1122152,89113.0,89112.0,0.3608]
[1745326782906,0.1122128,89115.0,89112.0,0.3608]
[1745326783110,0.00014581,89116.0,89112.0,0.3578]
[1745326783410,0.1975687,89118.0,89114.0,0.1122128]
[1745326783611,0.006,89117.0,89115.0,0.1862]
[1745326783916,0.1182098,89117.0,89115.0,0.3693]
[1745326784112,8e-05,89116.0,89115.0,0.3693]
[1745326784822,0.19478,89116.0,89115.0,0.3693]
[1745326785118,0.19478,89116.0,89112.0,0.3578]
[1745326785420,0.19778,89116.0,89112.0,0.3578]
[1745326785615,0.0561067,89115.0,89112.0,0.3578]
[1745326785812,0.0561065,89115.0,89112.0,0.3578]
[1745326786015,0.1122148,89113.0,89112.0,0.3578]
[1745326786208,0.1122249,89105.0,89104.0,0.00016833]
[1745326786413,0.1122232,89107.0,89104.0,0.00016833]
[1745326786614,0.1783,89106.0,89104.0,0.00016833]
[1745326787313,0.1783,89106.0,89103.0,0.35396833]
[1745326787509,0.1783,89106.0,89103.0,0.41008133]
[1745326787722,0.1783,89106.0,89103.0,0.46619503]
[1745326787919,0.1783,89106.0,89103.0,0.35396833]
[1745326788317,0.1783,89106.0,89104.0,0.1901]
[1745326788622,0.1783,89106.0,89103.0,0.35496833]
[1745326789018,0.1783,89106.0,89103.0,0.35596833]
[1745326789416,0.1783,89106.0,89103.0,0.35496833]
[1745326789723,0.1783,89106.0,89104.0,0.002]
[1745326790618,0.1122249,89105.0,89104.0,0.002]
[1745326790919,0.1783,89106.0,89104.0,0.003]
[1745326791224,0.1783,89106.0,89104.0,0.001]
[1745326792022,0.290524,89106.0,89100.0,0.1122311]
[1745326792221,0.1793,89106.0,89103.0,0.1122267]
[1745326792422,0.112228,89103.0,89098.0,0.3646]
[1745326792620,0.2488143,89102.0,89098.0,0.3646]
[1745326792929,0.2488143,89102.0,89098.0,0.1844]
[1745326792930,0.1927,89102.0,89098.0,0.1844]
[1745326793223,0.1927,89102.0,89099.0,0.1122324]
[1745326793424,0.1927,89102.0,89097.0,0.0561174]
[1745326793425,0.1122305,89101.0,89097.0,0.0561174]
[1745326793626,0.1927,89100.0,89097.0,0.0561174]
[1745326793920,0.1122349,89097.0,89096.0,0.00016833]
[1745326794322,0.4877349,89097.0,89096.0,0.00016833]
[1745326795026,0.4877349,89097.0,89096.0,0.002]
[1745326795822,0.4877349,89097.0,89096.0,0.003]
[1745326798131,0.3755,89097.0,89096.0,0.1152362]
[1745326798427,0.1828,89097.0,89096.0,0.003]
[1745326798622,0.08536,89099.0,89098.0,0.1122337]
[1745326799025,0.08536,89099.0,89098.0,0.2987337]
[1745326799226,0.08536,89099.0,89098.0,0.4875337]
[1745326799833,0.08536,89099.0,89098.0,0.4895337]
[1745326800626,8e-05,89099.0,89098.0,0.4915337]
[1745326800819,0.08536,89111.0,89104.0,0.0561127]
[1745326801019,0.00014581,89114.0,89113.0,0.1122148]
[1745326801919,0.00014581,89114.0,89113.0,0.1102148]
[1745326802613,0.00014581,89114.0,89113.0,0.1042148]
[1745326802820,0.08536,89122.0,89115.0,0.0561055]
[1745326803028,0.00010801,89122.0,89121.0,0.056102]
[1745326803221,0.00010801,89122.0,89121.0,0.1683067]
[1745326803420,0.00026573,89132.0,89121.0,0.1683067]
[1745326803421,0.00026573,89132.0,89123.0,0.0561005]
[1745326803621,0.1026787,89152.0,89121.0,0.523608]
[1745326803622,0.1026787,89152.0,89131.0,0.3608]
[1745326803928,0.2988787,89152.0,89151.0,0.1121669]
[1745326804122,0.30734923,89152.0,89151.0,0.1121669]
[1745326804329,0.30726923,89152.0,89148.0,0.3608]
[1745326804527,0.1121751,89145.0,89140.0,0.3608]
[1745326804715,0.1905,89144.0,89140.0,0.3608]
[1745326805027,0.11114923,89152.0,89140.0,0.3608]
[1745326805218,0.11114923,89152.0,89151.0,0.4729669]
[1745326805416,0.00839053,89152.0,89151.0,0.4729669]
[1745326805619,0.005,89153.0,89152.0,0.1121657]
[1745326805827,0.0136012,89153.0,89152.0,0.1121657]
[1745326806226,0.00016833,89160.0,89159.0,0.1121569]
[1745326806424,0.00016833,89160.0,89159.0,0.4729569]
[1745326806624,0.00853521,89160.0,89159.0,0.4729569]
[1745326806926,1e-08,89160.0,89159.0,0.5851169]
[1745326807228,0.00010801,89170.0,89169.0,0.1121443]
[1745326807423,0.00010801,89170.0,89169.0,0.4729443]
[1745326808217,0.00872939,89170.0,89169.0,0.4729443]
[1745326809328,0.00862138,89170.0,89169.0,0.4729443]
[1745326809629,0.00065941,89177.0,89176.0,0.1121355]
[1745326810019,0.00016822,89178.0,89177.0,0.1121342]
[1745326810322,0.00016822,89178.0,89177.0,0.4729342]
[1745326810623,0.08414581,89191.0,89190.0,0.1121179]
[1745326810823,0.112107,89199.0,89193.0,0.1121141]
[1745326811025,0.1,89200.0,89198.0,0.35027924]
[1745326811227,0.084,89235.0,89198.0,0.35027924]
[1745326811530,0.3721,89226.0,89216.0,0.3608]
[1745326811824,0.112094,89209.0,89208.0,0.00016822]
[1745326812419,0.00833518,89209.0,89208.0,0.00016822]
[1745326812624,0.19783518,89209.0,89208.0,0.47306352]
[1745326812825,0.19775518,89209.0,89208.0,0.47306352]
[1745326813034,0.19783518,89209.0,89208.0,0.36096822]
[1745326813328,0.42202518,89209.0,89208.0,0.00016822]
[1745326813830,0.19783518,89209.0,89208.0,0.00016822]
[1745326814731,0.49152918,89209.0,89208.0,0.00016822]
[1745326814928,0.49144918,89209.0,89208.0,0.00016822]
[1745326815126,0.49152918,89209.0,89208.0,0.00016822]
[1745326815430,0.49152918,89209.0,89200.0,0.1849]
[1745326815431,0.0560538,89199.0,89178.0,0.3608]
[1745326815624,0.0560538,89199.0,89167.0,0.3608]
[1745326815625,0.16921302,89190.0,89168.0,0.1953]
[1745326815826,0.1121456,89168.0,89167.0,0.3608]
[1745326816027,0.196148,89168.0,89167.0,0.3608]
[1745326816229,0.084,89168.0,89167.0,0.3608]
[1745326816629,0.4515,89168.0,89167.0,0.3608]
[1745326816833,0.5636456,89168.0,89167.0,0.3608]
[1745326817428,0.4515,89168.0,89167.0,0.3608]
[1745326818030,0.5636456,89168.0,89167.0,0.3608]
[1745326818229,0.5636456,89168.0,89167.0,0.3538]
[1745326819231,0.5636456,89168.0,89141.0,0.0560895]
[1745326819232,0.0560778,89160.0,89133.0,0.4729893]
[1745326819434,0.1121883,89134.0,89133.0,0.3608]
[1745326819635,0.1121861,89136.0,89133.0,0.3608]
[1745326819827,0.4981882,89135.0,89133.0,0.3608]
[1745326820134,0.1121883,89134.0,89133.0,0.3608]
[1745326820339,0.00839076,89134.0,89127.0,0.3739]
[1745326820639,0.0560972,89130.0,89127.0,0.3739]
[1745326820838,0.1121959,89128.0,89127.0,0.3739]
[1745326821034,0.3934,89129.0,89127.0,0.3739]
[1745326821243,0.1941,89128.0,89127.0,0.3739]
[1745326821938,0.3934,89128.0,89127.0,0.3739]
[1745326822840,0.3934,89128.0,89126.0,0.365849]
[1745326823041,0.0561009,89124.0,89100.0,0.10505048]
[1745326823340,0.4379012,89123.0,89110.0,0.0561092]
[1745326823538,0.084,89122.0,89111.0,0.1828]
[1745326823741,0.1122068,89120.0,89113.0,0.112214]
[1745326823939,0.3788,89121.0,89111.0,0.1828]
[1745326824237,0.1877,89119.0,89111.0,0.1828]
[1745326824439,0.1911,89118.0,89111.0,0.1828]
[1745326824839,0.084,89122.0,89117.0,0.3608]
[1745326825045,0.084,89122.0,89118.0,0.3771]
[1745326825640,0.08408,89122.0,89118.0,0.3771]
[1745326825844,0.08408,89122.0,89118.0,0.3701]
[1745326826143,0.1911,89121.0,89118.0,0.3701]
[1745326826347,0.3865,89121.0,89117.0,0.3608]
[1745326827034,0.3865,89121.0,89110.0,0.1897]
[1745326827235,0.3865,89121.0,89112.0,0.3608]
[1745326829529,0.3865,89121.0,89100.0,0.10505048]
[1745326829530,0.3608,89114.0,89100.0,0.10505048]
[1745326829736,0.3608,89101.0,89089.0,0.1812]
[1745326829943,0.084,89105.0,89094.0,0.3608]
[1745326830138,0.00016832,89104.0,89095.0,0.1812]
[1745326830645,0.00024832,89104.0,89096.0,0.1921]
[1745326831140,0.00024832,89104.0,89096.0,0.3841]
[1745326833442,0.19954832,89104.0,89096.0,0.3841]
[1745326833647,0.19954832,89104.0,89096.0,0.3771]
[1745326834339,0.3608,89135.0,89103.0,0.3608]
[1745326834536,0.00014581,89137.0,89124.0,0.3608]
[1745326834742,0.00014581,89137.0,89132.0,0.3608]
[1745326835043,0.00866517,89134.0,89133.0,0.1992]
[1745326836142,0.00866517,89134.0,89133.0,0.3912]
[1745326836343,0.00016832,89142.0,89133.0,0.3912]
[1745326836538,0.08414801,89154.0,89141.0,0.3608]
[1745326836738,0.00010801,89154.0,89149.0,0.3608]
[1745326836937,0.3653,89157.0,89150.0,0.3881]
[1745326837132,8e-05,89154.0,89150.0,0.3881]
[1745326837755,0.00851305,89154.0,89150.0,0.3881]
[1745326838045,0.00016832,89161.0,89151.0,0.305168]
[1745326838346,0.08404,89178.0,89160.0,0.3608]
[1745326838548,0.08404,89178.0,89168.0,0.3608]
[1745326838744,0.08404,89178.0,89169.0,0.3648]
[1745326838938,0.1975,89177.0,89169.0,0.3648]
[1745326839448,0.1811,89176.0,89169.0,0.1845]
[1745326839648,0.1811,89176.0,89168.0,0.3608]
[1745326839649,0.3608,89175.0,89168.0,0.3608]
[1745326839848,0.5583,89175.0,89168.0,0.3608]
[1745326840143,0.1811,89174.0,89168.0,0.3608]
[1745326840540,0.1975,89173.0,89168.0,0.3608]
[1745326841047,8e-05,89173.0,89169.0,0.3648]
[1745326841345,0.3608,89175.0,89169.0,0.3578]
[1745326841647,8e-05,89173.0,89169.0,0.3578]
[1745326843242,8e-05,89173.0,89169.0,0.5498]
[1745326843438,0.00824581,89178.0,89169.0,0.5498]
[1745326843638,8e-05,89173.0,89169.0,0.5498]
[1745326844150,8e-05,89173.0,89169.0,0.3578]
[1745326845239,8e-05,89173.0,89169.0,0.5498]
[1745326845835,8e-05,89173.0,89169.0,0.3723]
[1745326846035,8e-05,89173.0,89169.0,0.192]
[1745326846345,8e-05,89173.0,89165.0,0.1895]
[1745326847445,0.18408,89173.0,89165.0,0.1895]
[1745326847841,0.1814,89172.0,89165.0,0.1895]
[1745326848342,0.184,89171.0,89164.0,0.00016822]
[1745326848544,0.3608,89165.0,89143.0,0.3608]
[1745326848745,0.3608,89156.0,89133.0,0.3737]
[1745326849045,0.3778,89155.0,89133.0,0.3667]
[1745326849353,0.5592,89155.0,89133.0,0.3667]
[1745326849648,0.00016822,89153.0,89135.0,0.00016822]
[1745326849843,0.16921302,89150.0,89135.0,0.00016822]
[1745326850039,0.3608,89143.0,89135.0,0.00016822]
[1745326850243,0.3654,89142.0,89135.0,0.00016822]
[1745326852047,0.36548,89142.0,89135.0,0.00016822]
[1745326854745,0.36548,89142.0,89141.0,0.3608]
[1745326855346,0.18148,89142.0,89141.0,0.3608]
[1745326855544,8e-05,89142.0,89141.0,0.3608]
[1745326855847,0.08316,89146.0,89141.0,0.3608]
[1745326856049,0.1857,89145.0,89142.0,0.387]
[1745326856744,0.1857,89145.0,89142.0,0.38]
[1745326857054,0.1857,89145.0,89144.0,0.00092603]
[1745326857447,0.00016822,89153.0,89144.0,0.11310203]
[1745326857650,0.00016822,89153.0,89150.0,0.3608]
[1745326857948,0.00016822,89153.0,89151.0,0.1913]
[1745326858253,0.00024822,89153.0,89151.0,0.495468]
[1745326858555,0.00010801,89171.0,89152.0,0.112168]
[1745326858855,0.00010801,89171.0,89170.0,0.3608]
[1745326859150,0.00010801,89171.0,89161.0,0.1913]
[1745326859553,0.1925,89174.0,89161.0,0.1913]
[1745326859751,8e-05,89171.0,89161.0,0.1913]
[1745326860252,8e-05,89171.0,89167.0,0.3608]
[1745326860441,0.1925,89174.0,89168.0,0.3767]
[1745326860754,8e-05,89171.0,89168.0,0.3767]
[1745326862851,0.1925,89174.0,89170.0,0.3608]
[1745326863042,0.1925,89174.0,89171.0,0.3893]
[1745326864354,0.1925,89174.0,89170.0,0.3608]
[1745326864559,0.1925,89174.0,89157.0,0.00016822]
[1745326864560,0.197,89173.0,89161.0,0.3893]
[1745326864746,0.197,89173.0,89161.0,0.1943]
[1745326864941,0.1967,89172.0,89157.0,0.00016822]
[1745326865145,0.3608,89165.0,89157.0,0.00016822]
[1745326865346,0.1967,89164.0,89157.0,0.00016822]
[1745326865544,0.1967,89164.0,89138.0,0.3608]
[1745326865545,0.3943,89164.0,89138.0,0.3608]
[1745326865753,0.3608,89152.0,89139.0,0.3801]
[1745326865953,0.3869,89151.0,89139.0,0.3801]
[1745326866351,0.3869,89151.0,89138.0,0.3608]
[1745326866647,0.3869,89151.0,89128.0,0.1906]
[1745326866648,0.5756,89151.0,89139.0,0.00016822]
[1745326866847,0.3608,89145.0,89139.0,0.00016822]
[1745326867249,0.3869,89144.0,89139.0,0.00016822]
[1745326868850,8e-05,89144.0,89139.0,0.00016822]
[1745326869245,8e-05,89144.0,89140.0,0.11217999]
[1745326869445,8e-05,89144.0,89141.0,0.3647]
[1745326869748,0.00010801,89158.0,89141.0,0.3647]
[1745326869749,0.00010801,89158.0,89141.0,0.47687999]
[1745326869947,0.08088,89162.0,89155.0,0.3608]
[1745326870154,0.00024822,89156.0,89155.0,0.3608]
[1745326870452,0.00016822,89156.0,89155.0,0.833764]
[1745326870655,0.00024822,89156.0,89155.0,0.833764]
[1745326870850,0.1865,89175.0,89155.0,1.083764]
[1745326871046,0.00010801,89174.0,89169.0,0.3608]
[1745326871448,0.1801,89174.0,89170.0,0.3647]
[1745326871647,0.18018,89174.0,89170.0,0.3647]
[1745326871854,0.1865,89173.0,89170.0,0.3647]
[1745326872358,0.1865,89173.0,89170.0,0.3577]
[1745326872748,8e-05,89174.0,89171.0,0.0560709]
[1745326872952,0.0082517,89178.0,89177.0,0.1121342]
[1745326873252,0.1832,89178.0,89177.0,0.1121342]
[1745326874158,0.19178515,89178.0,89177.0,0.1121342]
[1745326874958,0.38508515,89178.0,89177.0,0.1121342]
[1745326876558,0.38508515,89178.0,89172.0,0.1926]
[1745326876760,0.38508515,89178.0,89150.0,0.3608]
[1745326876957,0.0560709,89171.0,89156.0,0.3879]
[1745326877149,0.4317715,89170.0,89158.0,0.056079]
[1745326877346,0.4317715,89170.0,89160.0,0.0560777]
[1745326877654,0.4878437,89170.0,89163.0,0.11231992]
[1745326877856,0.4883737,89170.0,89163.0,0.11231992]
[1745326878056,0.112146,89168.0,89163.0,0.00016822]
[1745326878256,0.2938472,89167.0,89163.0,0.00016822]
[1745326878452,0.1953,89166.0,89163.0,0.11231912]
[1745326878664,0.1953,89166.0,89163.0,0.00016822]
[1745326878860,0.1817,89165.0,89163.0,0.00016822]
[1745326879162,0.1817,89165.0,89164.0,0.1121506]
[1745326880160,0.1817,89165.0,89163.0,0.11231982]
[1745326880362,0.1953,89164.0,89163.0,0.11231982]
[1745326881458,0.19538,89164.0,89163.0,0.11231982]
[1745326881662,8e-05,89164.0,89163.0,0.30421982]
[1745326881864,8e-05,89164.0,89163.0,0.49831982]
[1745326883362,0.08088,89168.0,89167.0,0.1121468]
[1745326883563,0.00053,89170.0,89169.0,0.1121443]
[1745326883754,0.00010801,89176.0,89175.0,0.1121368]
[1745326884859,0.00858515,89178.0,89177.0,0.1121342]
[1745326885056,0.1818,89180.0,89178.0,0.112133]
[1745326885861,0.00016822,89181.0,89178.0,0.112133]
[1745326886052,0.00508,89179.0,89178.0,0.112133]
[1745326886863,0.01356636,89179.0,89178.0,0.112133]
[1745326887057,0.00508,89179.0,89178.0,0.112133]
[1745326887656,0.00508,89179.0,89178.0,0.105133]
[1745326888457,0.0560668,89178.0,89162.0,0.1121522]
[1745326888653,0.3608,89165.0,89163.0,0.00016822]
[1745326888959,0.1121472,89167.0,89154.0,0.0560814]
[1745326888960,0.7521,89164.0,89154.0,0.0560814]
[1745326889160,0.7521,89164.0,89151.0,0.0560833]
[1745326889364,0.1121561,89160.0,89154.0,0.1121628]
[1745326889568,0.3913,89159.0,89152.0,0.0560822]
[1745326889764,0.1121674,89151.0,89134.0,0.1968]
[1745326889961,0.3844,89150.0,89149.0,0.1121695]
[1745326891164,0.1984,89150.0,89149.0,0.1121695]
[1745326891468,0.1984,89150.0,89149.0,0.3053695]
[1745326893568,0.00848816,89160.0,89159.0,0.1121569]
[1745326893871,2e-08,89164.0,89163.0,0.1121519]
[1745326894273,2e-08,89164.0,89163.0,0.2243039]
[1745326894464,0.00859764,89164.0,89163.0,0.6061039]
[1745326894665,8.002e-05,89164.0,89163.0,0.6061039]
[1745326895168,0.1901,89178.0,89177.0,0.1121342]
[1745326895372,0.3828,89178.0,89177.0,0.1121342]
[1745326895670,0.38288,89178.0,89177.0,0.1051342]
[1745326896577,0.38288,89178.0,89177.0,0.2890342]
[1745326897570,0.19278,89178.0,89177.0,0.2890342]
[1745326897779,0.20131194,89178.0,89177.0,0.2890342]
[1745326898974,0.38221194,89178.0,89177.0,0.2890342]
[1745326899870,0.38221194,89178.0,89177.0,0.2900342]
[1745326901571,0.00861194,89178.0,89177.0,0.2900342]
[1745326901780,0.00053,89183.0,89177.0,0.40217019]
[1745326901963,0.1818,89195.0,89188.0,0.0560598]
[1745326902162,0.1818,89195.0,89194.0,0.1121129]
[1745326902365,0.1818,89195.0,89190.0,0.3608]
[1745326902570,0.1878,89194.0,89193.0,0.1121141]
[1745326903370,0.19615955,89194.0,89193.0,0.1051141]
[1745326904773,0.1121177,89191.0,89190.0,0.1121171]
[1745326905071,0.1121304,89181.0,89180.0,0.1121304]
[1745326905272,0.11213201,89181.0,89151.0,0.3608]
[1745326905476,0.0560698,89173.0,89153.0,0.1849]
[1745326905666,0.3608,89162.0,89148.0,0.1799]
[1745326905871,0.1121595,89157.0,89155.0,0.1121612]
[1745326906075,0.0560778,89160.0,89155.0,0.1121612]
[1745326906076,0.0560774,89161.0,89157.0,0.1121587]
[1745326906274,0.1121558,89160.0,89157.0,0.1121587]
[1745326906474,0.3608,89162.0,89153.0,0.0560818]
[1745326906677,0.3608,89162.0,89150.0,0.00016822]
[1745326906873,0.16921302,89160.0,89150.0,0.00016822]
[1745326907078,0.1121669,89151.0,89150.0,0.00016822]
[1745326907278,0.00958205,89154.0,89150.0,0.05625222]
[1745326907474,0.1899,89161.0,89153.0,0.0560822]
[1745326907671,0.1899,89161.0,89150.0,0.05625172]
[1745326907672,0.1121572,89159.0,89150.0,0.05625172]
[1745326907979,0.1899,89161.0,89159.0,0.112156]
[1745326908180,0.1121581,89159.0,89156.0,0.1121602]
[1745326908781,0.1121581,89159.0,89157.0,0.1121588]
[1745326908982,0.112158,89159.0,89156.0,0.1121604]
[1745326909175,0.1121583,89158.0,89156.0,0.1121604]
[1745326909576,0.1121561,89160.0,89158.0,0.1121572]
[1745326909774,0.18998,89161.0,89156.0,0.05608]
[1745326910072,0.1121572,89159.0,89156.0,0.1682398]
[1745326910274,0.1121582,89158.0,89156.0,0.05608]
[1745326910775,0.0561572,89161.0,89154.0,0.0560814]
[1745326910980,0.1121573,89159.0,89156.0,0.1051601]
[1745326911174,0.056081,89155.0,89150.0,0.00016822]
[1745326911383,0.3608,89154.0,89151.0,0.1121666]
[1745326911582,0.4729633,89154.0,89151.0,0.1121666]
[1745326911770,0.4729633,89154.0,89150.0,0.00016822]
[1745326911771,0.3608,89154.0,89150.0,0.00016822]
[1745326911972,0.3608,89154.0,89153.0,0.1121644]
[1745326912778,0.3608,89154.0,89151.0,0.0560829]
[1745326912974,0.3608,89154.0,89152.0,0.1121653]
[1745326913176,0.3608,89154.0,89152.0,0.1121656]
[1745326913984,0.1122353,89161.0,89156.0,0.1121602]
[1745326914177,0.1121558,89160.0,89156.0,0.1121602]
[1745326914376,0.3608,89162.0,89151.0,0.3613]
[1745326914581,0.1122366,89160.0,89156.0,0.1121602]
[1745326914783,8e-05,89160.0,89159.0,0.1121569]
[1745326915283,8e-05,89160.0,89157.0,0.0560791]
[1745326915884,8e-05,89160.0,89159.0,0.1121569]
[1745326916477,0.07912,89166.0,89165.0,0.1121493]
[1745326916785,0.00016822,89167.0,89166.0,0.1121481]
[1745326917478,0.00016822,89167.0,89158.0,0.3608]
[1745326917781,0.00016822,89167.0,89160.0,0.0560778]
[1745326918085,0.00016822,89167.0,89143.0,0.0560884]
[1745326918380,0.529027,89164.0,89153.0,0.0560821]
[1745326918585,0.1121544,89161.0,89157.0,0.1121591]
[1745326918787,0.1121568,89160.0,89157.0,0.1051591]
[1745326919492,0.1121575,89159.0,89157.0,0.1051591]
[1745326919786,0.4168759,89164.0,89155.0,0.0560809]
[1745326919787,0.0560772,89161.0,89155.0,0.0560809]
[1745326919997,0.3608,89156.0,89155.0,0.0560809]
[1745326920792,0.3608,89156.0,89154.0,0.181]
[1745326920992,0.3608,89156.0,89151.0,0.0560834]
[1745326921198,0.0560772,89161.0,89157.0,0.1121594]
[1745326921393,0.1121598,89157.0,89155.0,0.0560804]
[1745326921693,0.0560786,89159.0,89155.0,0.0560809]
[1745326921894,0.0560786,89159.0,89155.0,0.2360809]
[1745326922096,0.1811,89158.0,89157.0,0.1121585]
[1745326922800,0.1121611,89156.0,89152.0,0.1905]
[1745326922991,0.1811,89155.0,89153.0,0.1121637]
[1745326923191,0.1811,89155.0,89151.0,0.0560829]
[1745326923495,0.3608,89154.0,89153.0,0.1121644]
[1745326923899,0.5357,89154.0,89153.0,0.1121644]
[1745326924107,0.5357,89154.0,89153.0,0.4607644]
[1745326924292,0.5357,89154.0,89153.0,0.1121644]
[1745326924597,0.5917816,89154.0,89150.0,0.00016822]
[1745326924797,0.1783,89153.0,89150.0,0.00016822]
[1745326924995,0.1783,89153.0,89152.0,0.1121657]
[1745326925199,0.3532,89153.0,89152.0,0.1121657]
[1745326925591,0.3532,89153.0,89152.0,0.2873657]
[1745326926502,0.3532,89153.0,89152.0,0.2803657]
[1745326926798,0.3532,89153.0,89152.0,0.1121657]
[1745326927492,0.3532,89153.0,89152.0,0.4812657]
[1745326928898,0.3532,89153.0,89152.0,0.1121657]
[1745326930092,0.4653651,89153.0,89151.0,0.1121662]
[1745326930399,0.3532,89153.0,89115.0,0.4114]
[1745326930603,0.0560997,89126.0,89116.0,0.0561054]
[1745326930801,0.3562,89125.0,89117.0,0.1914]
[1745326931307,0.1122056,89121.0,89117.0,0.1914]
[1745326931501,0.3562,89120.0,89117.0,0.1914]
[1745326931700,0.1122085,89118.0,89117.0,0.1914]
[1745326932000,0.1122103,89117.0,89113.0,0.1122143]
[1745326932200,0.4684103,89117.0,89113.0,0.1122148]
[1745326932399,0.4684103,89117.0,89112.0,0.1914]
[1745326932697,0.3562,89117.0,89112.0,0.1914]
[1745326932904,0.3562,89117.0,89116.0,0.112211]
[1745326933103,0.1817,89117.0,89116.0,0.112211]
[1745326933402,0.181,89125.0,89122.0,0.1122032]
[1745326933597,0.1122009,89124.0,89123.0,0.1761]
[1745326933999,0.112211,89116.0,89115.0,0.1891]
[1745326934199,0.3608,89116.0,89111.0,0.1761]
[1745326934504,0.1911,89115.0,89114.0,0.1122135]
[1745326935001,0.3721,89115.0,89114.0,0.1122135]
[1745326935399,0.37218,89115.0,89114.0,0.1122135]
[1745326936606,0.37218,89115.0,89112.0,0.2452074]
[1745326936807,0.37218,89115.0,89114.0,0.1122135]
[1745326937002,0.37218,89115.0,89112.0,0.2452074]
[1745326937205,0.37218,89115.0,89113.0,0.1122136]
[1745326937411,0.37218,89115.0,89113.0,0.1122144]
[1745326937802,0.37218,89115.0,89114.0,0.1122135]
[1745326939509,0.37218,89115.0,89112.0,0.1891]
[1745326939896,0.37218,89115.0,89114.0,0.1122135]
[1745326940101,0.37218,89115.0,89113.0,0.1839]
[1745326940302,0.37218,89115.0,89113.0,0.2961145]
[1745326940801,0.37218,89115.0,89114.0,0.1122135]
[1745326941809,0.37218,89115.0,89110.0,0.00016822]
[1745326941997,0.1122187,89110.0,89106.0,0.35396822]
[1745326942201,0.3576,89109.0,89106.0,0.35396822]
[1745326942410,0.3576,89109.0,89108.0,0.1122211]
[1745326943309,8e-05,89115.0,89107.0,0.3506]
[1745326943503,0.18198,89115.0,89114.0,0.1122135]
[1745326943807,0.1819,89115.0,89114.0,0.1122135]
[1745326944202,0.18198,89115.0,89114.0,0.1122135]
[1745326944413,0.18198,89115.0,89114.0,0.4628135]
[1745326945612,0.1819,89115.0,89108.0,0.05611]
[1745326945815,0.1912,89114.0,89108.0,0.05611]